fUSD/lending_fUSD_20250407
["ID","MTS","AMOUNT","RATE_DAILY","PERIOD"]
[357354753,1744012025224,-1661.2,0.0005,60]
[357354754,1744012025341,-526.99501671,0.0005,120]
[357354755,1744012025453,-1607.49677,0.0005,120]
[357354756,1744012025563,-521.90249932,0.0005,30]
[357354757,1744012025675,-3126.78433699,0.0005,120]
[357354758,1744012025788,-213.12545704,0.0005,120]
[357354759,1744012025906,-713.91800584,0.0005,120]
[357354760,1744012026028,-500.0,0.0005,30]
[357354761,1744012026155,-677.90280253,0.0005,120]
[357354762,1744012026288,-383.38204812,0.0005,120]
[357354763,1744012026424,-9729.26747303,0.0005,120]
[357354764,1744012026551,-200.0,0.0005,30]
[357354765,1744012026683,-11800.0,0.0005,120]
[357354766,1744012026810,-500.0,0.0005,120]
[357354767,1744012026936,-181.08010149,0.00050121,2]
[357354768,1744012027069,-239.84119403,0.00050121,2]
[357354769,1744012027205,-1000.0,0.00050706,120]
[357354770,1744012027354,-300.0,0.00050816,120]
[357354771,1744012027480,-1785.73657423,0.000509,23]
[357354772,1744012027606,-2248.8930673,0.00051,120]
[357354773,1744012027729,-154.83,0.00051097,120]
[357354774,1744012027849,-298.45565756,0.00051275,31]
[357354775,1744012027970,-500.0,0.00051275,120]
[357354776,1744012028093,-505.01670693,0.00051275,120]
[357354777,1744012028216,-505.01670693,0.00051275,120]
[357354778,1744012028334,-624.62387277,0.00051275,120]
[357354779,1744012028455,-505.01670693,0.00051275,120]
[357354780,1744012028569,-505.01670693,0.00051275,120]
[357354781,1744012028699,-505.01670693,0.00051275,120]
[357354782,1744012028843,-505.01670693,0.00051275,120]
[357354783,1744012028984,-505.01670693,0.00051275,120]
[357354784,1744012029119,-505.01670693,0.00051275,120]
[357354785,1744012029263,-505.01670693,0.00051275,120]
[357354786,1744012029399,-505.01670693,0.00051275,120]
[357354787,1744012029527,-505.01670693,0.00051275,120]
[357354788,1744012029650,-515.11704107,0.00051275,120]
[357354789,1744012029778,-515.11704107,0.00051275,120]
[357354790,1744012029903,-515.11704107,0.00051275,120]
[357354791,1744012030034,-515.11704107,0.00051275,120]
[357354792,1744012030160,-515.11704107,0.00051275,120]
[357354793,1744012030289,-515.11704107,0.00051275,120]
[357354794,1744012030422,-515.11704107,0.00051275,120]
[357354795,1744012030550,-515.11704107,0.00051275,120]
[357354796,1744012030670,-22226.22217252,0.00051276,15]
[357354797,1744012030787,-3775.29427375,0.00051276,15]
[357354798,1744012030902,-831.00484655,0.00051452,10]
[357354799,1744012031019,-187.78006525,0.0005149,2]
[357354800,1744012031138,-248.71531821,0.0005149,2]
[357354801,1744012031258,-264.55531989,0.00051998,120]
[357354802,1744012031378,-426.19590024,0.00052,120]
[357354803,1744012031501,-1708.93680254,0.00052,30]
[357354804,1744012031840,-236.30537766,0.00052,120]
[357354805,1744012031983,-440.81,0.00052195,2]
[357354806,1744012032134,-313.50144273,0.00052225,120]
[357354807,1744012032275,-280.57,0.000523,2]
[357354808,1744012032406,-150.0,0.000523,30]
[357354809,1744012032520,-2000.0,0.00052356,120]
[357354810,1744012032639,-2000.0,0.00052356,120]
[357354811,1744012032762,-2000.0,0.00052356,120]
[357354812,1744012032883,-2000.0,0.00052356,120]
[357354813,1744012033011,-2000.0,0.00052356,120]
[357354814,1744012033138,-2000.0,0.00052356,120]
[357354815,1744012033269,-2000.0,0.00052356,120]
[357354816,1744012033388,-2000.0,0.00052356,120]
[357354817,1744012033517,-2000.0,0.00052356,120]
[357354818,1744012033647,-2000.0,0.00052356,120]
[357354819,1744012033777,-2000.0,0.00052356,120]
[357354820,1744012033904,-2000.0,0.00052356,120]
[357354821,1744012034043,-2000.0,0.00052356,120]
[357354822,1744012034188,-2000.0,0.00052356,120]
[357354823,1744012034320,-2000.0,0.00052356,120]
[357354824,1744012034454,-2000.0,0.00052356,120]
[357354825,1744012034597,-2000.0,0.00052356,120]
[357354826,1744012034743,-2000.0,0.00052356,120]
[357354827,1744012034881,-2000.0,0.00052356,120]
[357354828,1744012035019,-2000.0,0.00052356,120]
[357354829,1744012035162,-2000.0,0.00052356,120]
[357354830,1744012035315,-2000.0,0.00052356,120]
[357354831,1744012035464,-1756.91994858,0.00052356,120]
[357354832,1744012035610,-276.94,0.00052579,120]
[357354833,1744012035760,-196.79,0.00052587,2]
[357354834,1744012035904,-194.72792766,0.00052859,2]
[357354835,1744012036053,-257.91778498,0.00052859,2]
[357354836,1744012036188,-1000.0,0.00053,120]
[357354837,1744012036318,-1000.0,0.00053,120]
[357354838,1744012036448,-1000.0,0.00053,120]
[357354839,1744012036579,-1000.0,0.00053,120]
[357354840,1744012036704,-1000.0,0.00053,120]
[357354841,1744012036830,-1000.0,0.00053,120]
[357354842,1744012036957,-1000.0,0.00053,120]
[357354843,1744012037092,-1000.0,0.00053,120]
[357354844,1744012037223,-1000.0,0.00053,120]
[357354845,1744012037353,-310.65016,0.000535,120]
[357354846,1744012037481,-581.79,0.00053699,120]
[357354847,1744012037607,-166.77649458,0.000539,31]
[357354848,1744012037735,-150.5,0.0005397,120]
[357354849,1744012037864,-150.5,0.0005397,120]
[357354850,1744012037998,-13445.0,0.00053973,120]
[357354851,1744012038136,-150.5,0.0005398,120]
[357354852,1744012038271,-150.5,0.0005398,120]
[357354853,1744012038402,-150.5,0.0005399,120]
[357354854,1744012038534,-150.5,0.0005399,120]
[357354855,1744012038674,-1322.79077856,0.00053999,90]
[357354856,1744012038824,-384745.916157,0.00054,120]
[357354857,1744012038965,-151.0,0.00054,120]
[357354858,1744012039113,-224.528618,0.00054,120]
[357354859,1744012039254,-151.0,0.00054,120]
[357354860,1744012039389,-151.0,0.00054,120]
[357354861,1744012039519,-151.0,0.00054,120]
[357354862,1744012039648,-151.0,0.00054,120]
[357354863,1744012039789,-151.0,0.00054,120]
[357354864,1744012039929,-1138.091506,0.00054,120]
[357354865,1744012040078,-1138.091506,0.00054,120]
[357354866,1744012040220,-151.0,0.00054,120]
[357354867,1744012040359,-151.0,0.00054,120]
[357354868,1744012040501,-151.0,0.00054,120]
[357354869,1744012040648,-201.93286099,0.00054228,2]
[357354870,1744012040791,-267.46074303,0.00054228,2]
[357354871,1744012040918,-164.0,0.0005437,120]
[357354872,1744012041048,-164.13,0.00054384,120]
[357354873,1744012041175,-440.81,0.00054459,2]
[357354874,1744012041303,-154.83,0.00054544,120]
[357354875,1744012041427,-186.2490324,0.000547,11]
[357354876,1744012041554,-194.0299629,0.000547,120]
[357354877,1744012041684,-1000.0,0.00054794,120]
[357354878,1744012041815,-1000.0,0.00054794,120]
[357354879,1744012041949,-1000.0,0.00054794,120]
[357354880,1744012042090,-1000.0,0.00054794,120]
[357354881,1744012042227,-1000.0,0.00054794,120]
[357354882,1744012042357,-201.20805054,0.00054794,120]
[357354883,1744012042489,-851.26,0.00054794,120]
[357354884,1744012042622,-151.0,0.00054795,30]
[357354885,1744012042750,-151.0,0.00054795,30]
[357354886,1744012042876,-151.0,0.00054795,30]
[357354887,1744012043007,-151.0,0.00054795,120]
[357354888,1744012043136,-150.0,0.00054795,7]
[357354889,1744012043282,-108691.55230265,0.000548,120]
[357354890,1744012048202,1053.08806999,0.000329,30]
[357354891,1744012065175,250.0,0.00043198,120]
[357354913,1744012153589,-500.0,0.000438,100]
[357354915,1744012153739,-299.99,0.00044967,120]
[357354916,1744012153879,-958.17389371,0.00046048,30]
[357354917,1744012154021,-5000.0,0.000475,120]
[357354918,1744012154175,-3529.74,0.000486,45]
[357354920,1744012154329,-3529.74,0.000486,45]
[357354921,1744012154480,-3529.74,0.000486,45]
[357354923,1744012154628,-3529.74,0.000486,45]
[357354925,1744012154781,-3529.74,0.000486,45]
[357354926,1744012154935,-3529.74,0.000486,45]
[357354928,1744012155086,-3529.74,0.000486,45]
[357354929,1744012155231,-3529.74,0.000486,45]
[357354930,1744012155371,-3529.74,0.000486,45]
[357354932,1744012155525,-3529.74,0.000486,45]
[357354933,1744012155666,-3529.74,0.000486,45]
[357354934,1744012155807,-3529.74,0.000486,45]
[357354935,1744012155943,-174.58,0.00049033,91]
[357354936,1744012156095,-500.0,0.00049315,120]
[357354937,1744012156239,-500.0,0.00049315,120]
[357354938,1744012156370,-152.87061638,0.00049315,120]
[357354939,1744012156501,-5000.0,0.00050629,120]
[357354940,1744012156931,-500.0,0.00051,120]
[357354941,1744012157071,-1202.15,0.00051116,120]
[357354942,1744012157206,-500.0,0.00052,120]
[357354943,1744012157334,-300.0,0.00052747,120]
[357354944,1744012157462,-538.88,0.00052828,120]
[357354945,1744012157591,-500.0,0.00053,120]
[357354946,1744012157718,-581.79,0.00053699,120]
[357354947,1744012157839,-1063.03828729,0.00053704,30]
[357354948,1744012157959,-693.770238,0.00053888,120]
[357354949,1744012158098,-150.13576,0.00053888,120]
[357354950,1744012158240,-16975.254733,0.00053888,120]
[357354951,1744012158378,-5381.436382,0.00053888,120]
[357354952,1744012158521,-817.593421,0.00053888,120]
[357354953,1744012158663,-153.003789,0.00053888,120]
[357354954,1744012158803,-500.0,0.00054,120]
[357354955,1744012158952,-300.0,0.00054117,120]
[357354956,1744012159102,-971.00340626,0.000545,120]
[357354957,1744012159251,-561.84627698,0.00054695,80]
[357354958,1744012159398,-466.0,0.00054767,120]
[357354959,1744012159547,-150.5,0.0005477,120]
[357354960,1744012159688,-150.5,0.0005478,120]
[357354961,1744012159849,-187.56812118,0.00054789,120]
[357354962,1744012160007,-194.17367603,0.00054789,120]
[357354963,1744012160164,-500.0,0.00054789,120]
[357354964,1744012160315,-411.13606799,0.00054789,120]
[357354965,1744012160463,-469.95889402,0.00054789,31]
[357354966,1744012160603,-532.2198908,0.00054789,120]
[357354967,1744012160741,-532.2198908,0.00054789,120]
[357354968,1744012160872,-532.2198908,0.00054789,120]
[357354969,1744012161001,-532.2198908,0.00054789,120]
[357354970,1744012161129,-532.2198908,0.00054789,120]
[357354971,1744012161259,-532.2198908,0.00054789,120]
[357354972,1744012161393,-532.2198908,0.00054789,120]
[357354973,1744012161550,-532.2198908,0.00054789,120]
[357354974,1744012161690,-532.2198908,0.00054789,120]
[357354975,1744012161825,-532.2198908,0.00054789,120]
[357354976,1744012161962,-532.2198908,0.00054789,120]
[357354977,1744012162104,-532.2198908,0.00054789,120]
[357354978,1744012162243,-532.2198908,0.00054789,120]
[357354979,1744012162379,-532.2198908,0.00054789,120]
[357354980,1744012162512,-532.2198908,0.00054789,120]
[357354981,1744012162642,-532.2198908,0.00054789,120]
[357354982,1744012162776,-532.2198908,0.00054789,120]
[357354983,1744012163194,-532.2198908,0.00054789,120]
[357354984,1744012163319,-532.2198908,0.00054789,120]
[357354985,1744012163439,-552.6898866,0.00054789,120]
[357354986,1744012163552,-552.6898866,0.00054789,120]
[357354987,1744012163662,-552.6898866,0.00054789,120]
[357354988,1744012163781,-552.6898866,0.00054789,120]
[357354989,1744012163902,-552.6898866,0.00054789,120]
[357354990,1744012164031,-552.6898866,0.00054789,120]
[357354991,1744012164163,-552.6898866,0.00054789,120]
[357354992,1744012164296,-552.6898866,0.00054789,120]
[357354993,1744012164427,-552.6898866,0.00054789,120]
[357354994,1744012164548,-552.6898866,0.00054789,120]
[357354995,1744012164675,-689.71092098,0.00054789,120]
[357354996,1744012164800,-689.71092098,0.00054789,120]
[357354997,1744012164934,-689.71092098,0.00054789,120]
[357354998,1744012165075,-150.5,0.0005479,120]
[357354999,1744012165194,-186.0,0.00054795,30]
[357355000,1744012165316,-181.30093003,0.00054795,120]
[357355001,1744012165441,-1000.0,0.00054799,120]
[357355002,1744012165560,-1000.0,0.00054799,120]
[357355003,1744012165679,-1019.6646,0.00054799,120]
[357355004,1744012165805,-889092.09135299,0.000548,120]
[357355005,1744012172779,255.6114581,0.00043198,120]
[357355006,1744012202814,740.17773895,0.00043198,30]
[357355008,1744012208763,250.0,0.00019,2]
[357355020,1744012232461,-300.0,0.00021,2]
[357355021,1744012232470,-350.0,0.00023,2]
[357355022,1744012232480,-400.0,0.00025,2]
[357355023,1744012232490,-450.0,0.00027,2]
[357355024,1744012232499,-500.0,0.00029,2]
[357355025,1744012232508,-550.0,0.00031,2]
[357355026,1744012232518,-600.0,0.00033,2]
[357355027,1744012232527,-150.99,0.00041681,2]
[357355028,1744012232537,-1012.7649,0.00043092,120]
[357355029,1744012232546,-315.3407,0.00043098,2]
[357355030,1744012232555,-2945.5368,0.00043098,2]
[357355031,1744012232565,-303.7396,0.00043098,2]
[357355032,1744012232575,-390.46747523,0.00043198,2]
[357355033,1744012232584,-150.0,0.00043198,2]
[357355034,1744012232594,-215.88347439,0.00043198,7]
[357355036,1744012232603,-14082.41116429,0.00043198,2]
[357355038,1744012232615,-106586.33488297,0.00043198,2]
[357355040,1744012232626,-8057.56191775,0.00043198,2]
[357355042,1744012232637,-473.5332,0.00043198,2]
[357355044,1744012232648,-2587.4648,0.00043198,2]
[357355050,1744012237724,150.0,0.00043198,30]
[357355052,1744012238239,-224.9719,0.00043098,2]
[357355053,1744012238261,-12276.30513391,0.00043198,2]
[357355054,1744012238316,-2715.44211298,0.00043198,7]
[357355055,1744012238355,-5237.89372758,0.00043198,4]
[357355056,1744012238370,-5176.63315784,0.00043198,4]
[357355057,1744012238381,-2490.54511093,0.00043198,20]
[357355058,1744012238391,-150.0,0.00043198,14]
[357355059,1744012238401,-305.66110645,0.00043198,14]
[357355060,1744012238411,-367.06728274,0.00043301,5]
[357355061,1744012238422,-2373.1852,0.00043888,7]
[357355062,1744012238432,-151.0,0.00045,120]
[357355063,1744012238442,-417.20788321,0.000455,2]
[357355064,1744012238452,-1122.0,0.000455,2]
[357355065,1744012238462,-250.0,0.00045849,2]
[357355066,1744012238472,-350.0,0.00045849,12]
[357355067,1744012238483,-200.0,0.00046596,2]
[357355068,1744012238492,-207.4,0.00047965,2]
[357355069,1744012238502,-215.0738,0.00049334,2]
[357355070,1744012238512,-272.97,0.00049496,30]
[357355071,1744012238523,-5796.2693,0.000498,2]
[357355072,1744012238533,-223.0315306,0.00050703,2]
[357355073,1744012238543,-1877.23,0.00050729,2]
[357355074,1744012238553,-5000.0,0.00050772,2]
[357355076,1744012238564,-156.22,0.00051076,2]
[357355078,1744012238574,-1852.42,0.00051184,120]
[357355079,1744012238584,-500.0,0.00051346,3]
[357355082,1744012238594,-231.28369723,0.00052072,2]
[357355083,1744012238604,-1095.64761649,0.0005281,30]
[357355086,1744012238614,-239.84119403,0.00053441,2]
[357355088,1744012238624,-330.62,0.000537,2]
[357355090,1744012238634,-503.70196728,0.00054,120]
[357355092,1744012238644,-2796.40507584,0.0005425,2]
[357355094,1744012238654,-150.0,0.000545,30]
[357355096,1744012238663,-175.69194505,0.0005469,28]
[357355098,1744012238674,-500.0,0.000547,19]
[357355100,1744012238684,-5000.0,0.000547,120]
[357355102,1744012238694,-150.0,0.000547,30]
[357355104,1744012238703,-151.37,0.0005478,120]
[357355106,1744012238713,-514.55739426,0.00054789,120]
[357355108,1744012238722,-33763.6428967,0.0005479,4]
[357355113,1744012238761,-840.39829041,0.0005479,4]
[357355115,1744012238773,-6005.5364,0.0005479,4]
[357355117,1744012238784,-2988.93929534,0.0005479,4]
[357355119,1744012238796,-2819.11792105,0.0005479,4]
[357355123,1744012238822,340.89438,0.00027,120]
[357355128,1744012238857,-347.85969933,0.0005479,4]
[357355130,1744012238869,-577.97068617,0.0005479,4]
[357355132,1744012238880,-5122.78205877,0.0005479,4]
[357355142,1744012238962,340.89438,0.000323,120]
[357355271,1744012240375,-340.89438,0.000376,120]
[357355273,1744012240386,-89.19645978,0.000429,120]
[357355275,1744012240397,-251.69792022,0.000429,120]
[357355277,1744012240407,-535.5457,0.00043098,2]
[357355279,1744012240418,-340.89438,0.000482,120]
[357355281,1744012240428,-197.75267082,0.00051,2]
[357355291,1744012240509,-753.98407558,0.00051,2]
[357355325,1744012243386,-170.77892723,0.00051,2]
[357355326,1744012243395,-340.89438,0.000535,120]
[357355327,1744012243405,-190175.57870323,0.0005479,4]
[357355328,1744012243415,-228687.344636,0.0005479,4]
[357355329,1744012243424,-265.5,0.0005479,120]
[357355330,1744012243433,-296.79,0.0005479,120]
[357355331,1744012243442,-151.37,0.0005479,120]
[357355332,1744012243452,-151.37,0.0005479,120]
[357355333,1744012243461,-151.37,0.0005479,120]
[357355334,1744012243471,-151.37,0.0005479,120]
[357355335,1744012243483,-151.37,0.0005479,120]
[357355336,1744012243497,-151.37,0.0005479,120]
[357355337,1744012243513,-151.37,0.0005479,120]
[357355338,1744012243525,-213.37285848,0.0005479,7]
[357355339,1744012243539,-2000.0,0.00054794,13]
[357355340,1744012243552,-2000.0,0.00054794,13]
[357355341,1744012243566,-278.0,0.00054794,13]
[357355342,1744012243582,-500.0,0.00054794,120]
[357355343,1744012243596,-500.0,0.00054794,120]
[357355344,1744012243608,-500.0,0.00054794,120]
[357355345,1744012243622,-500.0,0.00054794,120]
[357355346,1744012243636,-500.0,0.00054794,120]
[357355347,1744012243650,-500.0,0.00054794,120]
[357355348,1744012243664,-500.0,0.00054794,120]
[357355349,1744012243678,-603.51,0.00054794,120]
[357355350,1744012243693,-697.39,0.00054794,120]
[357355351,1744012243707,-900.74,0.00054794,120]
[357355352,1744012243722,-500.0,0.00054794,120]
[357355353,1744012243735,-500.0,0.00054794,120]
[357355354,1744012243748,-500.0,0.00054794,2]
[357355355,1744012243761,-1353.19,0.00054794,120]
[357355356,1744012243776,-500.0,0.00054794,120]
[357355357,1744012243791,-500.0,0.00054794,120]
[357355358,1744012243803,-1273.02,0.00054794,120]
[357355359,1744012243815,-500.0,0.00054794,120]
[357355360,1744012243826,-500.0,0.00054794,120]
[357355361,1744012243840,-500.0,0.00054794,120]
[357355362,1744012243856,-1438.64,0.00054799,120]
[357355363,1744012243868,-500.0,0.00054799,120]
[357355364,1744012243879,-504119.06584825,0.000548,120]
[357355365,1744012243900,-10974.32715765,0.000548,120]
[357355366,1744012243922,-105361.74234,0.000548,120]
[357355367,1744012243936,-402.0340627,0.000548,120]
[357355374,1744012244633,-371.31475455,0.000548,120]
[357355375,1744012244663,-4681.06352658,0.000548,120]
[357355376,1744012244711,2644.16862,0.00019899,2]
[357355377,1744012244854,1205.83138,0.00019899,2]
[357355444,1744012246621,-1438.33724,0.00019899,2]
[357355446,1744012246631,-2644.16863,0.00019899,2]
[357355447,1744012246640,-711.95557,0.00046488,30]
[357355449,1744012246650,-711.95557,0.00046688,30]
[357355451,1744012246659,-711.95557,0.00047088,30]
[357355453,1744012246668,-711.95557,0.00047288,30]
[357355455,1744012246677,-300.0,0.00051,120]
[357355457,1744012246687,-150.0,0.0005479,4]
[357355459,1744012246696,-500.0,0.00054794,120]
[357355461,1744012246705,-500.0,0.00054794,120]
[357355463,1744012246714,-500.0,0.00054794,120]
[357355465,1744012246724,-500.0,0.00054794,120]
[357355467,1744012246733,-500.926054,0.00054794,2]
[357355469,1744012246743,-500.0,0.00054794,120]
[357355471,1744012246752,-500.0,0.00054799,120]
[357355473,1744012246762,-500.0,0.00054799,120]
[357355475,1744012246772,-15183.61008468,0.000548,120]
[357355477,1744012246783,-489.652,0.000548,120]
[357355480,1744012246796,-7479.9,0.000548,120]
[357355482,1744012246807,-6924.58684378,0.000548,120]
[357355485,1744012246819,-19904.84880599,0.000548,120]
[357355487,1744012246831,-827.948,0.000548,120]
[357355489,1744012246843,-753.37374,0.000548,120]
[357355491,1744012246854,-7548.72718294,0.000548,120]
[357355570,1744012254771,-47.34203585,0.00046288,30]
[357355574,1744012255177,-664.61353415,0.00046288,30]
[357355575,1744012255188,-110249.39039919,0.000548,120]
[357355579,1744012255445,-6.22987787,0.000548,120]
[357355580,1744012255457,-284052.24815605,0.000548,120]
[357355582,1744012255469,-40863.47212209,0.000548,120]
[357355583,1744012255479,-151.422638,0.000548,120]
[357355584,1744012255489,-151.0,0.000548,120]
[357355585,1744012255498,-151.0,0.000548,120]
[357355586,1744012255507,-151.0,0.000548,120]
[357355587,1744012255517,-151.0,0.000548,120]
[357355588,1744012255526,-151.0,0.000548,120]
[357355590,1744012255535,-151.0,0.000548,120]
[357355591,1744012255545,-151.0,0.000548,120]
[357355592,1744012255555,-3191.01,0.000548,60]
[357355593,1744012255565,-648.955798,0.000548,120]
[357355594,1744012255574,-648.955798,0.000548,120]
[357355595,1744012255584,-209.044421,0.000548,120]
[357355596,1744012255596,-209.044421,0.000548,120]
[357355598,1744012255605,-2867.890689,0.000548,120]
[357355599,1744012255614,-2867.890689,0.000548,120]
[357355600,1744012255624,-151.0,0.000548,120]
[357355601,1744012255633,-1100.0,0.000548,20]
[357355602,1744012255642,-27700.46086764,0.000548,60]
[357355827,1744012358953,274580.0,0.00043192,30]
[357355828,1744012363774,206.0,0.00043192,30]
[357355829,1744012390847,654.53930385,0.00043192,120]
[357355830,1744012410004,-250.0,0.000294,2]
[357355831,1744012410028,-250.0,0.0003234,2]
[357355832,1744012410054,-90.4,0.00035238,2]
[357355834,1744012436885,-156.83,0.00026849,2]
[357355835,1744012439442,-159.6,0.00035238,2]
[357355836,1744012439467,-156.83,0.00035321,2]
[357355837,1744012439490,-26.74,0.00039531,2]
[357355838,1744012444141,-525.4796383,0.00039472,2]
[357355839,1744012495458,-347.15717305,0.00043,120]
[357355840,1744012635455,543.90999999,0.00043101,120]
[357355841,1744012827514,-500.0,0.00039431,2]
[357355842,1744012827546,-500.0,0.00039431,2]
[357355843,1744012827578,-450.97198744,0.00039431,2]
[357355844,1744012827607,-283.02801256,0.00039431,2]
[357355845,1744012887414,1000.0,0.00043117,30]
[357355854,1744013025117,250.0,0.00043117,120]
[357355855,1744013104163,762.93,0.00033,120]
[357355856,1744013226440,151.0,0.00043117,30]
[357355857,1744013227721,156.587,0.00043117,30]
[357355858,1744013228388,162.380719,0.00043117,30]
[357355859,1744013229039,168.3888056,0.00043117,30]
[357355860,1744013229704,168.3888056,0.00043117,30]
[357355861,1744013240105,200.0,0.00043117,30]
[357355862,1744013240908,207.4,0.00043117,30]
[357355863,1744013242503,215.0738,0.00043117,30]
[357355864,1744013243199,223.0315306,0.00043117,30]
[357355865,1744013244156,231.28369723,0.00043117,30]
[357355866,1744013244861,239.84119403,0.00043117,30]
[357355867,1744013245523,248.71531821,0.00043117,30]
[357355868,1744013246175,257.91778498,0.00043117,30]
[357355869,1744013246860,267.46074303,0.00043117,30]
[357355870,1744013247597,277.35679052,0.00043117,30]
[357355871,1744013248210,287.61899177,0.00043117,30]
[357355872,1744013248857,298.26089446,0.00043117,30]
[357355873,1744013249505,309.29654756,0.00043117,30]
[357355874,1744013250148,320.74051982,0.00043117,30]
[357355875,1744013250895,332.60791905,0.00043117,30]
[357355876,1744013251534,344.91441206,0.00043117,30]
[357355877,1744013252708,357.6762453,0.00043117,30]
[357355878,1744013252870,370.91026638,0.00043117,30]
[357355879,1744013253535,384.63394623,0.00043117,30]
[357355880,1744013254221,384.63394623,0.00043117,30]
[357355881,1744013396145,185.0,0.000345,30]
[357355883,1744013432430,-273.8271108,0.00039531,5]
[357355884,1744013432442,-389.18140598,0.00039531,5]
[357355885,1744013432453,-1929.74426013,0.00039531,117]
[357355886,1744013432463,-594.99832356,0.00039531,2]
[357355888,1744013432474,-2146.388,0.00039631,55]
[357355890,1744013432484,-170.696,0.00039631,55]
[357355892,1744013432494,-507.82,0.00039631,2]
[357355894,1744013432504,-507.82,0.00039631,2]
[357355896,1744013432514,-507.82,0.00039631,2]
[357355897,1744013432523,-5.53201033,0.00039631,2]
[357355899,1744013432544,-502.28798967,0.00039631,2]
[357355901,1744013432553,-507.82,0.00039631,2]
[357355902,1744013432564,-507.82,0.00039631,2]
[357355903,1744013432574,-507.82,0.00039631,2]
[357355904,1744013432584,-507.82,0.00039631,2]
[357355905,1744013432594,-507.82,0.00039631,2]
[357355906,1744013432605,-507.82,0.00039631,2]
[357355907,1744013432616,-507.82,0.00039631,2]
[357355908,1744013432630,-507.82,0.00039631,2]
[357355909,1744013432641,-507.82,0.00039631,2]
[357355910,1744013432651,-507.82,0.00039631,2]
[357355911,1744013432662,-507.82,0.00039631,2]
[357355912,1744013432673,-507.82,0.00039631,2]
[357355913,1744013432684,-507.82,0.00039631,2]
[357355914,1744013432695,-507.82,0.00039631,2]
[357355915,1744013432707,-507.82,0.00039631,2]
[357355916,1744013432717,-507.95819278,0.00039631,2]
[357355917,1744013432729,-154.0,0.0004,14]
[357355918,1744013432739,-171.0,0.00041,14]
[357355919,1744013432750,-534.36295529,0.00041076,2]
[357355938,1744013433537,-7167.87292778,0.00041076,2]
[357355940,1744013438521,-1319.03016294,0.00041076,2]
[357355941,1744013438533,-251.77142429,0.00041076,2]
[357355942,1744013438570,-1392.68663958,0.00041076,2]
[357355943,1744013438582,-1488.35813043,0.00041076,2]
[357355944,1744013438725,-1296.58483128,0.00041076,2]
[357355945,1744013438736,-1304.92096618,0.00041076,2]
[357355948,1744013440550,-2941.79999998,0.00041076,2]
[357355949,1744013440648,-0.01222201,0.00041076,2]
[357355950,1744013440660,-651.29126216,0.00041076,2]
[357355951,1744013440671,-751.99398363,0.00041076,2]
[357355952,1744013440785,-5.81642662,0.00041076,2]
[357355953,1744013440802,-539.93067981,0.00041076,2]
[357355954,1744013440814,-120.30072453,0.00041076,2]
[357355955,1744013440823,-157.61003671,0.00041497,2]
[357355956,1744013441182,-286.80620051,0.00041497,2]
[357355957,1744013441194,-238.44196278,0.00041497,2]
[357355958,1744013441203,-521.97784681,0.00041497,2]
[357355959,1744013441214,-1189.95479572,0.00041497,2]
[357355960,1744013441225,-919.08755625,0.00041497,2]
[357355961,1744013441648,-427.47756002,0.00041497,2]
[357356020,1744013444883,-8939.9895412,0.00041497,2]
[357356023,1744013444891,-3180.27704622,0.00041497,2]
[357356093,1744013445559,-326.33,0.00041497,2]